[Event "FIDE World Rapid-ch Open 2018"]
[White "Zablotsky, Sergei"]
[Black "Hirneise, Jens"]
[Site "St. Petersburg"]
[Round "12.86"]
[Annotator "ChessBase"]
[Result "0-1"]
[Date "2018.12.28"]
[WhiteElo "2511"]
[BlackElo "2371"]
[PlyCount "104"]
[TimeControl "900+10"]

1. d4 {[%emt 0:0:0]} Nf6 {[%emt 0:0:0]} 2. c4 {[%emt 0:0:0]} g6 {[%emt 0:0:0]} 3. Nc3 {[%emt 0:0:0]} Bg7 {[%emt 0:0:0]} 4. e4 {[%emt 0:0:2]} d6 {[%emt 0:0:0]} 5. h3 {[%emt 0:0:4]} 0-0 {[%emt 0:0:0]} 6. Nf3 {[%emt 0:0:0]} e5 {[%emt 0:0:3]} 7. d5 {[%emt 0:0:4]} a5 {[%emt 0:0:3]} 8. g4 {[%emt 0:0:6]
} Na6 {[%emt 0:0:13]} 9. Be3 {[%emt 0:0:4]} Nd7 {[%emt 0:0:0]} 10. a3 {[%emt 0:1:26]} Nac5 {[%emt 0:1:34]} 11. Rg1 {[%emt 0:1:0]} a4 {[%emt 0:0:55]} 12. h4 {[%emt 0:0:51]} Nb3 {[%emt 0:2:11]} 13. Rb1 {[%emt 0:0:0]} Ndc5 {[%emt 0:1:41]} 14. h5 {[%emt 0:0:17]} gxh5 {[%emt 0:0:47]} 15. gxh5 {[%emt 0:0:37]} Kh8 {[%emt 0:0:1]} 16. h6 {[%emt 0:0:24]} Bf6 {[%emt 0:0:1]
} 17. Ng5 {[%emt 0:0:23]} Qe7 {[%emt 0:1:29]} 18. Qh5 {[%emt 0:0:0]} Nd4 {[%emt 0:0:58]} 19. Kd1 {[%emt 0:1:18]} Bd7 {[%emt 0:0:26]} 20. Rg3 {[%emt 0:1:3]} Be8 {[%emt 0:0:59]} 21. Bh3 {[%emt 0:0:31]} Bxg5 {[%emt 0:0:53]
} 22. Qxg5 {[%emt 0:0:4]} Qxg5 {[%emt 0:0:2]} 23. Bxg5 {[%emt 0:1:11]
} f6 {[%emt 0:0:7]} 24. Be3 {[%emt 0:2:6]} Bg6 {[%emt 0:0:0]} 25. f3 {[%emt 0:3:4]} f5 {[%emt 0:0:2]} 26. Bxd4 {[%emt 0:0:13]} exd4 {[%emt 0:0:23]} 27. exf5 {[%emt 0:0:2]} dxc3 {[%emt 0:1:2]} 28. fxg6 {[%emt 0:0:8]
} hxg6 {[%emt 0:0:2]} 29. bxc3 {[%emt 0:0:23]} Kh7 {[%emt 0:0:0]} 30. Kd2 {[%emt 0:0:35]} Rae8 {[%emt 0:0:32]} 31. Be6 {[%emt 0:2:6]} Rf6 {[%emt 0:0:19]} 32. Rbg1 {[%emt 0:0:43]} Nxe6 {[%emt 0:0:24]} 33. dxe6 {[%emt 0:0:14]
} Rfxe6 {[%emt 0:0:19]} 34. f4 {[%emt 0:0:27]} Rf8 {[%emt 0:0:0]} 35. Re3 {[%emt 0:0:18]} Rxe3 {[%emt 0:1:19]} 36. Kxe3 {[%emt 0:0:2]} Rf5 {[%emt 0:0:9]} 37. Rh1 {[%emt 0:0:51]} b5 {[%emt 0:0:32]} 38. cxb5 {[%emt 0:0:9]
} Rxb5 {[%emt 0:0:1]} 39. Kd4 {[%emt 0:0:7]} Rb3 {[%emt 0:0:0]} 40. Re1 {[%emt 0:0:19]} Kxh6 {[%emt 0:0:5]} 41. Re7 {[%emt 0:0:1]} Rxa3 {[%emt 0:0:30]} 42. Rxc7 {[%emt 0:0:1]} Ra1 {[%emt 0:0:3]} 43. Kc4 {[%emt 0:0:19]
} Rf1 {[%emt 0:0:9]} 44. Rf7 {[%emt 0:0:12]} Kh5 {[%emt 0:0:0]} 45. Kb4 {[%emt 0:0:5]} Kg4 {[%emt 0:0:4]} 46. Rd7 {[%emt 0:0:14]} Rxf4+ {[%emt 0:0:2]} 47. c4 {[%emt 0:0:2]} Rf6 {[%emt 0:0:18]} 48. Kxa4 {[%emt 0:0:3]
} Kf5 {[%emt 0:0:19]} 49. Kb5 {[%emt 0:0:3]} g5 {[%emt 0:0:0]} 50. Kc6 {[%emt 0:0:5]} g4 {[%emt 0:0:2]} 51. Kd5 {[%emt 0:0:20]} g3 {[%emt 0:0:7]
} 52. Rg7 {[%emt 0:0:2]} Kf4 {[%emt 0:0:14]} 0-1

[Event "FIDE World Rapid-ch Open 2018"]
[White "Ovchinnikov, Vsevolod"]
[Black "Belozerov, Andrei"]
[Site "St. Petersburg"]
[Round "12.87"]
[Annotator "ChessBase"]
[Result "1/2-1/2"]
[Date "2018.12.28"]
[WhiteElo "2329"]
[BlackElo "2528"]
[PlyCount "101"]
[TimeControl "900+10"]

1. d4 {[%emt 0:0:0]} d5 {[%emt 0:0:0]} 2. c4 c6 3. Nf3 {[%emt 0:0:0]} Nf6 {[%emt 0:0:0]} 4. g3 {[%emt 0:0:0]} dxc4 {[%emt 0:0:0]} 5. Bg2 {[%emt 0:0:0]} g6 {[%emt 0:0:0]} 6. a4 {[%emt 0:0:34]} Bg7 {[%emt 0:0:3]} 7. 0-0 {[%emt 0:0:9]} 0-0 {[%emt 0:0:7]} 8. Na3 {[%emt 0:0:4]} Be6 {[%emt 0:0:0]} 9. Ng5 {[%emt 0:0:2]} Bd5 {[%emt 0:1:37]} 10. e4 {[%emt 0:0:4]} h6 {[%emt 0:0:0]
} 11. exd5 {[%emt 0:0:2]} hxg5 {[%emt 0:0:2]} 12. dxc6 {[%emt 0:0:1]
} Nxc6 {[%emt 0:0:1]} 13. Nxc4 {[%emt 0:2:58]} Qxd4 {[%emt 0:0:0]} 14. Qxd4 {[%emt 0:2:38]} Nxd4 {[%emt 0:0:2]} 15. Bxg5 {[%emt 0:0:0]} Rac8 {[%emt 0:0:15]} 16. Na3 {[%emt 0:0:52]} Nc2 {[%emt 0:1:59]} 17. Rac1 {[%emt 0:5:2]} Nxa3 {[%emt 0:1:14]} 18. bxa3 {[%emt 0:0:1]} b6 {[%emt 0:0:7]
} 19. Bb7 {[%emt 0:0:14]} Rxc1 {[%emt 0:3:40]} 20. Rxc1 {[%emt 0:0:2]
} Rd8 {[%emt 0:0:2]} 21. Rc7 {[%emt 0:1:48]} Nd5 {[%emt 0:0:0]} 22. Bxd5 {[%emt 0:1:25]} Rxd5 {[%emt 0:0:1]} 23. Bxe7 {[%emt 0:0:2]} Bd4 {[%emt 0:2:48]} 24. Kg2 {[%emt 0:1:7]} a6 {[%emt 0:1:19]} 25. Rc8+ {[%emt 0:1:23]
} Kg7 {[%emt 0:0:6]} 26. Rc4 {[%emt 0:0:29]} Bc5 {[%emt 0:0:0]} 27. Bxc5 {[%emt 0:0:1]} bxc5 {[%emt 0:0:1]} 28. a5 {[%emt 0:0:2]} Kf6 {[%emt 0:0:10]} 29. Kf3 {[%emt 0:0:5]} Ke5 {[%emt 0:0:24]} 30. Ke2 {[%emt 0:0:26]
} Kd6 {[%emt 0:0:12]} 31. Rc1 {[%emt 0:0:17]} Re5+ {[%emt 0:0:0]} 32. Kd3 {[%emt 0:0:7]} Kd5 {[%emt 0:0:2]} 33. Rb1 {[%emt 0:0:17]} c4+ {[%emt 0:0:10]} 34. Kc3 {[%emt 0:0:3]} Re2 {[%emt 0:0:13]} 35. Rb6 {[%emt 0:0:17]
} Rxf2 {[%emt 0:0:9]} 36. Rxa6 {[%emt 0:0:2]} Rf3+ {[%emt 0:0:0]} 37. Kb2 {[%emt 0:0:13]} Rf2+ {[%emt 0:0:17]} 38. Kc3 {[%emt 0:0:2]} Rf3+ {[%emt 0:0:1]} 39. Kb2 {[%emt 0:0:2]} Rb3+ {[%emt 0:0:1]} 40. Ka2 {[%emt 0:0:28]
} Rb5 {[%emt 0:0:2]} 41. Ra8 {[%emt 0:0:12]} c3 {[%emt 0:0:0]} 42. Rc8 {[%emt 0:0:7]} Kd4 {[%emt 0:0:4]} 43. a6 {[%emt 0:0:8]} Rb2+ {[%emt 0:0:25]} 44. Ka1 {[%emt 0:0:1]} Rb3 {[%emt 0:0:1]} 45. Ka2 {[%emt 0:0:3]
} Rb2+ {[%emt 0:0:0]} 46. Ka1 {[%emt 0:0:2]} Rb3 {[%emt 0:0:0]} 47. Ka2 {[%emt 0:0:1]} Rb2+ {[%emt 0:0:1]} 48. Ka1 {[%emt 0:0:1]} Rb3 {[%emt 0:0:18]} 49. Ka2 {[%emt 0:0:16]} Rb2+ {[%emt 0:0:1]} 50. Ka1 {[%emt 0:0:20]
} Rb3 {[%emt 0:0:1]} 51. Ka2 {[%emt 0:0:2]} 1/2-1/2

[Event "FIDE World Rapid-ch Open 2018"]
[White "Sanikidze, Tornike"]
[Black "Pogosyan, Stefan"]
[Site "St. Petersburg"]
[Round "12.88"]
[Annotator "ChessBase"]
[Result "0-1"]
[Date "2018.12.28"]
[WhiteElo "2507"]
[BlackElo "2365"]
[PlyCount "114"]
[TimeControl "900+10"]

1. d4 {[%emt 0:0:0]} Nf6 {[%emt 0:0:4]} 2. c4 {[%emt 0:0:0]} e6 {[%emt 0:0:0]} 3. Nf3 {[%emt 0:0:0]} b6 {[%emt 0:0:6]} 4. a3 {[%emt 0:0:0]} Bb7 {[%emt 0:0:9]} 5. Nc3 {[%emt 0:0:2]} d5 {[%emt 0:0:1]} 6. cxd5 {[%emt 0:0:0]} exd5 {[%emt 0:0:6]} 7. Qc2 {[%emt 0:0:2]} Nbd7 {[%emt 0:0:6]} 8. Bf4 {[%emt 0:0:10]} a6 {[%emt 0:0:1]} 9. e3 {[%emt 0:0:10]} Be7 {[%emt 0:0:0]} 10. Bd3 {[%emt 0:0:2]} 0-0 {[%emt 0:0:6]} 11. 0-0 {[%emt 0:0:2]} c5 {[%emt 0:0:14]} 12. Rad1 {[%emt 0:0:20]} Rc8 {[%emt 0:0:57]} 13. Ne5 {[%emt 0:0:6]
} g6 {[%emt 0:1:8]} 14. Bh6 {[%emt 0:0:53]} Re8 {[%emt 0:0:0]} 15. f4 {[%emt 0:0:1]} Bf8 {[%emt 0:7:26]} 16. Bg5 {[%emt 0:0:31]} Qc7 {[%emt 0:0:57]} 17. f5 {[%emt 0:0:14]} Rxe5 {[%emt 0:1:31]} 18. dxe5 {[%emt 0:0:46]
} Qxe5 {[%emt 0:0:2]} 19. Bf4 {[%emt 0:0:16]} Qe7 {[%emt 0:0:0]} 20. fxg6 {[%emt 0:0:6]} hxg6 {[%emt 0:0:30]} 21. Qf2 {[%emt 0:1:3]} Bg7 {[%emt 0:1:20]} 22. Bg5 {[%emt 0:0:12]} Qe6 {[%emt 0:0:5]} 23. Bb1 {[%emt 0:2:45]
} Ng4 {[%emt 0:1:17]} 24. Qg3 {[%emt 0:0:10]} Nge5 {[%emt 0:0:0]} 25. Ba2 {[%emt 0:1:8]} c4 {[%emt 0:0:52]} 26. Ne2 {[%emt 0:0:14]} Nc5 {[%emt 0:0:35]} 27. Nf4 {[%emt 0:0:19]} Qd7 {[%emt 0:0:26]} 28. Bb1 {[%emt 0:0:4]
} Qg4 {[%emt 0:0:30]} 29. Nxd5 {[%emt 0:1:31]} Bxd5 {[%emt 0:0:0]} 30. Qxg4 {[%emt 0:4:16]} Nxg4 {[%emt 0:0:1]} 31. Rxd5 {[%emt 0:0:0]} Bxb2 {[%emt 0:0:4]} 32. h3 {[%emt 0:0:11]} Ne5 {[%emt 0:0:11]} 33. Bf6 {[%emt 0:0:23]} Ned3 {[%emt 0:0:25]} 34. Bd4 {[%emt 0:4:9]} Bxd4 {[%emt 0:0:0]} 35. exd4 {[%emt 0:0:12]} Ne4 {[%emt 0:0:3]} 36. Rd7 {[%emt 0:0:1]} f5 {[%emt 0:0:4]} 37. g4 {[%emt 0:0:12]} Nd2 {[%emt 0:0:11]} 38. Rd1 {[%emt 0:0:21]
} Nxb1 {[%emt 0:0:4]} 39. Rxb1 c3 40. gxf5 {[%emt 0:0:31]} c2 {[%emt 0:0:2]} 41. Rf1 {[%emt 0:0:10]} gxf5 {[%emt 0:0:5]} 42. d5 {[%emt 0:0:7]
} c1=Q {[%emt 0:0:6]} 43. Rxc1 {[%emt 0:0:2]} Rxc1+ {[%emt 0:0:0]} 44. Kg2 {[%emt 0:0:1]} Kf8 {[%emt 0:0:13]} 45. d6 {[%emt 0:0:6]} Ke8 {[%emt 0:0:10]} 46. Rb7 {[%emt 0:0:6]} Rc6 {[%emt 0:0:3]} 47. h4 {[%emt 0:0:15]
} Rxd6 {[%emt 0:0:3]} 48. Kf3 {[%emt 0:0:1]} Kf8 {[%emt 0:0:0]} 49. h5 {[%emt 0:0:2]} Kg8 {[%emt 0:0:1]} 50. a4 {[%emt 0:0:3]} Nc5 {[%emt 0:0:6]
} 51. Ra7 {[%emt 0:0:1]} Nxa4 {[%emt 0:0:3]} 52. Kf4 {[%emt 0:0:0]
} Nc5 {[%emt 0:0:5]} 53. Kg5 {[%emt 0:0:8]} Rd7 {[%emt 0:0:0]} 54. Ra8+ {[%emt 0:0:4]} Kh7 {[%emt 0:0:2]} 55. Rb8 {[%emt 0:0:5]} Rb7 {[%emt 0:0:8]} 56. Rc8 {[%emt 0:0:22]} Rf7 {[%emt 0:0:16]} 57. Rc6 {[%emt 0:0:4]
} f4 {[%emt 0:0:6]} 0-1

[Event "FIDE World Rapid-ch Open 2018"]
[White "Sokolov, Andrei"]
[Black "Shubin, Kirill"]
[Site "St. Petersburg"]
[Round "12.89"]
[Annotator "ChessBase"]
[Result "0-1"]
[Date "2018.12.28"]
[WhiteElo "2532"]
[BlackElo "2334"]
[PlyCount "102"]
[TimeControl "900+10"]

1. g3 {[%emt 0:0:0]} e5 {[%emt 0:0:2]} 2. c4 {[%emt 0:0:0]} Nc6 {[%emt 0:0:0]} 3. Bg2 {[%emt 0:0:0]} g6 {[%emt 0:0:1]} 4. Nc3 {[%emt 0:0:6]} Bg7 {[%emt 0:0:2]} 5. e3 {[%emt 0:0:3]} Nge7 {[%emt 0:0:2]} 6. Nge2 {[%emt 0:0:0]} d6 {[%emt 0:0:1]} 7. d3 {[%emt 0:0:54]} 0-0 {[%emt 0:0:4]} 8. 0-0 {[%emt 0:0:7]} Be6 {[%emt 0:0:2]} 9. a3 {[%emt 0:0:22]} f5 {[%emt 0:0:24]
} 10. b4 {[%emt 0:0:8]} Qd7 {[%emt 0:0:18]} 11. Bb2 {[%emt 0:0:53]} Rae8 {[%emt 0:2:2]
} 12. Nd5 {[%emt 0:0:34]} Nd8 {[%emt 0:0:29]} 13. Qd2 {[%emt 0:0:0]} c6 {[%emt 0:0:24]} 14. Ndc3 {[%emt 0:0:1]} g5 {[%emt 0:0:32]} 15. f4 {[%emt 0:0:6]} h6 {[%emt 0:0:1]} 16. Nd1 {[%emt 0:1:42]} Ng6 {[%emt 0:0:0]} 17. Nf2 {[%emt 0:0:14]} exf4 {[%emt 0:3:35]} 18. exf4 {[%emt 0:0:1]
} Bxb2 {[%emt 0:0:37]} 19. Qxb2 {[%emt 0:0:1]} Qg7 {[%emt 0:0:9]} 20. Qxg7+ {[%emt 0:1:37]} Kxg7 {[%emt 0:0:2]} 21. Rae1 {[%emt 0:0:43]} Bd7 {[%emt 0:0:31]
} 22. fxg5 {[%emt 0:1:37]} hxg5 {[%emt 0:0:4]} 23. Nd4 {[%emt 0:0:5]
} Ne5 {[%emt 0:1:11]} 24. c5 {[%emt 0:1:14]} dxc5 {[%emt 0:0:0]} 25. bxc5 {[%emt 0:0:1]} Ndf7 {[%emt 0:0:6]} 26. Nf3 {[%emt 0:1:13]} Nxf3+ {[%emt 0:0:25]} 27. Bxf3 {[%emt 0:0:1]} Bc8 {[%emt 0:0:21]} 28. Bh5 {[%emt 0:1:27]
} Rxe1 {[%emt 0:0:45]} 29. Rxe1 {[%emt 0:0:4]} Kf6 {[%emt 0:0:0]} 30. Bxf7 {[%emt 0:2:34]} Kxf7 {[%emt 0:0:26]} 31. Kf1 {[%emt 0:0:25]
} Rd8 {[%emt 0:0:20]} 32. Ke2 {[%emt 0:0:34]} Rd4 {[%emt 0:1:16]} 33. Kd2 {[%emt 0:0:8]
} Ra4 {[%emt 0:0:9]} 34. Ra1 {[%emt 0:0:3]} b6 {[%emt 0:0:0]} 35. cxb6 {[%emt 0:0:29]} axb6 {[%emt 0:0:0]} 36. Kc3 {[%emt 0:0:2]} c5 {[%emt 0:0:8]} 37. Kb3 {[%emt 0:0:23]} b5 {[%emt 0:0:57]} 38. Rc1 {[%emt 0:0:54]
} Be6+ {[%emt 0:0:1]} 39. Kb2 {[%emt 0:0:0]} b4 {[%emt 0:0:0]} 40. Ra1 {[%emt 0:0:27]} Kf6 {[%emt 0:1:44]} 41. axb4 {[%emt 0:0:23]} Rxa1 {[%emt 0:0:1]} 42. Kxa1 {[%emt 0:0:1]} cxb4 43. d4 Bc4 {[%emt 0:0:12]
} 44. h4 {[%emt 0:1:4]} g4 {[%emt 0:1:10]} 45. Kb2 {[%emt 0:0:19]} Kg6 {[%emt 0:0:43]
} 46. d5 {[%emt 0:0:23]} Bxd5 47. Nd3 Bf7 {[%emt 0:0:26]} 48. Nxb4 {[%emt 0:0:52]} f4 {[%emt 0:0:3]} 49. Nd3 {[%emt 0:0:16]} fxg3 {[%emt 0:0:14]
} 50. Kc1 {[%emt 0:0:1]} Kf5 {[%emt 0:0:14]} 51. Kd2 {[%emt 0:0:0]} g2 {[%emt 0:0:4]} 0-1

[Event "FIDE World Rapid-ch Open 2018"]
[White "Maghsoodloo, Parham"]
[Black "Gurvich, Vitaly"]
[Site "St. Petersburg"]
[Round "12.90"]
[Annotator "ChessBase"]
[Result "1-0"]
[Date "2018.12.28"]
[WhiteElo "2688"]
[BlackElo "2270"]
[PlyCount "132"]
[TimeControl "900+10"]

1. d4 {[%emt 0:0:0]} Nf6 {[%emt 0:0:0]} 2. Nf3 {[%emt 0:0:0]} e6 {[%emt 0:0:0]
} 3. Bf4 {[%emt 0:0:0]} d5 {[%emt 0:0:39]} 4. e3 {[%emt 0:0:0]} Bd6 {[%emt 0:0:3]} 5. Nbd2 {[%emt 0:0:4]} Bxf4 {[%emt 0:0:50]} 6. exf4 {[%emt 0:0:1]} c5 {[%emt 0:0:16]} 7. c3 {[%emt 0:0:17]} Qc7 {[%emt 0:0:0]} 8. g3 {[%emt 0:0:3]} b6 {[%emt 0:0:23]} 9. Bb5+ {[%emt 0:0:3]} Bd7 {[%emt 0:0:13]} 10. Bd3 {[%emt 0:0:3]} Nc6 {[%emt 0:0:33]} 11. Rc1 {[%emt 0:0:7]
} 0-0 {[%emt 0:0:22]} 12. 0-0 {[%emt 0:0:3]} Rac8 {[%emt 0:0:0]} 13. a3 {[%emt 0:0:7]} Qd6 {[%emt 0:0:31]} 14. Qe2 {[%emt 0:0:4]} cxd4 {[%emt 0:0:28]} 15. cxd4 {[%emt 0:0:2]} Ne7 {[%emt 0:1:8]} 16. Qe5 {[%emt 0:0:3]
} Qb8 {[%emt 0:3:0]} 17. Qxb8 {[%emt 0:2:8]} Rxb8 {[%emt 0:0:0]} 18. Rc7 {[%emt 0:0:1]} a5 {[%emt 0:2:12]} 19. Ne5 {[%emt 0:0:1]} Rfd8 {[%emt 0:0:33]} 20. g4 {[%emt 0:0:6]} Rbc8 {[%emt 0:1:18]} 21. Rb7 {[%emt 0:2:2]
} Nc6 {[%emt 0:0:23]} 22. g5 {[%emt 0:0:3]} Nxe5 {[%emt 0:0:0]} 23. fxe5 {[%emt 0:0:1]} Nh5 {[%emt 0:0:11]} 24. f4 {[%emt 0:0:13]} g6 {[%emt 0:0:25]} 25. Kg2 {[%emt 0:0:14]} Rb8 {[%emt 0:0:15]} 26. Rc7 {[%emt 0:0:6]
} Rbc8 {[%emt 0:0:11]} 27. Rb7 {[%emt 0:0:8]} Rb8 {[%emt 0:0:0]} 28. Rxb8 {[%emt 0:0:6]} Rxb8 {[%emt 0:0:1]} 29. Kf3 {[%emt 0:0:2]} Rc8 {[%emt 0:0:13]} 30. Ke3 {[%emt 0:0:2]} Kf8 {[%emt 0:0:26]} 31. Nb1 {[%emt 0:0:12]
} Ke7 {[%emt 0:0:22]} 32. Nc3 {[%emt 0:0:2]} Rc7 {[%emt 0:0:0]} 33. Kd2 {[%emt 0:0:33]} Rc8 {[%emt 0:0:15]} 34. Nd1 {[%emt 0:0:1]} Rc7 {[%emt 0:1:40]} 35. Ne3 {[%emt 0:0:4]} Rc8 {[%emt 0:0:4]} 36. Ng4 {[%emt 0:0:15]
} Rc7 {[%emt 0:0:17]} 37. Nh6 {[%emt 0:1:12]} Kf8 {[%emt 0:0:0]} 38. Rf2 {[%emt 0:1:3]} Be8 {[%emt 0:0:38]} 39. Ng4 {[%emt 0:0:3]} Ke7 {[%emt 0:0:7]} 40. Ne3 {[%emt 0:0:27]} Bd7 {[%emt 0:0:20]} 41. Nd1 {[%emt 0:0:2]
} Be8 {[%emt 0:0:9]} 42. Nc3 {[%emt 0:0:3]} Bd7 {[%emt 0:0:0]} 43. Rf1 {[%emt 0:0:2]} Rc8 {[%emt 0:0:8]} 44. Ne2 {[%emt 0:0:13]} Kf8 {[%emt 0:0:23]} 45. Rb1 {[%emt 0:0:12]} Ke7 {[%emt 0:0:12]} 46. Ra1 {[%emt 0:0:30]
} Ra8 {[%emt 0:0:10]} 47. Ke3 {[%emt 0:0:10]} Ra7 {[%emt 0:0:0]} 48. Rc1 {[%emt 0:0:49]} Rb7 {[%emt 0:0:29]} 49. Ng3 {[%emt 0:1:12]} Nxg3 {[%emt 0:0:8]} 50. hxg3 {[%emt 0:0:0]} Kf8 {[%emt 0:0:8]} 51. g4 {[%emt 0:0:27]
} Ra7 {[%emt 0:0:17]} 52. f5 {[%emt 0:0:17]} Rb7 {[%emt 0:0:0]} 53. Ba6 {[%emt 0:0:57]} Ra7 {[%emt 0:0:6]} 54. Bc8 {[%emt 0:0:3]} Ke7 {[%emt 0:0:23]} 55. Bxd7 {[%emt 0:0:6]} Kxd7 {[%emt 0:0:2]} 56. Rh1 {[%emt 0:0:1]
} exf5 {[%emt 0:0:16]} 57. gxf5 {[%emt 0:0:1]} gxf5 {[%emt 0:0:0]} 58. Rxh7 {[%emt 0:0:2]} Ke6 {[%emt 0:0:8]} 59. g6 {[%emt 0:0:6]} Ra8 {[%emt 0:0:5]} 60. Rxf7 {[%emt 0:0:12]} Rh8 {[%emt 0:0:5]} 61. Rh7 {[%emt 0:0:19]
} Rc8 {[%emt 0:0:9]} 62. g7 {[%emt 0:0:8]} Rg8 {[%emt 0:0:0]} 63. Kf4 {[%emt 0:0:4]} a4 {[%emt 0:0:6]} 64. Kg5 {[%emt 0:0:1]} Kf7 {[%emt 0:0:15]} 65. Kxf5 {[%emt 0:0:3]} b5 {[%emt 0:0:1]} 66. e6+ {[%emt 0:0:5]
} Ke7 {[%emt 0:0:2]} 1-0

[Event "FIDE World Rapid-ch Open 2018"]
[White "Drygalov, Sergey"]
[Black "Perdomo, Carlos Andres"]
[Site "St. Petersburg"]
[Round "12.92"]
[Annotator "NA"]
[Result "1-0"]
[Date "2018.12.28"]
[WhiteElo "2446"]
[BlackElo "2301"]
[PlyCount "57"]
[TimeControl "900+10"]

1. d4 {[%emt 0:0:0]} Nf6 {[%emt 0:0:0]} 2. Nf3 {[%emt 0:0:0]} e6 {[%emt 0:0:16]
} 3. c4 {[%emt 0:0:0]} d5 {[%emt 0:0:9]} 4. Nc3 {[%emt 0:0:0]} Be7 {[%emt 0:0:2]} 5. Bf4 {[%emt 0:0:4]} 0-0 {[%emt 0:0:9]} 6. e3 {[%emt 0:0:3]
} Nh5 {[%emt 0:1:45]} 7. Be5 {[%emt 0:1:3]} f6 {[%emt 0:0:35]
} 8. Bg3 {[%emt 0:0:2]} Nxg3 {[%emt 0:2:26]} 9. hxg3 {[%emt 0:0:2]} f5 {[%emt 0:0:31]
} 10. Qc2 {[%emt 0:0:14]} c6 {[%emt 0:0:10]} 11. g4 {[%emt 0:0:0]} g6 {[%emt 0:0:36]} 12. gxf5 {[%emt 0:0:8]} Rxf5 {[%emt 0:5:2]} 13. Bd3 {[%emt 0:0:9]} dxc4 {[%emt 0:1:45]} 14. Bxc4 {[%emt 0:3:47]} Kg7 {[%emt 0:0:5]
} 15. Bd3 {[%emt 0:0:58]} Rf8 {[%emt 0:0:54]} 16. Ne5 {[%emt 0:0:0]} Rf6 {[%emt 0:1:17]} 17. 0-0-0 {[%emt 0:1:59]} Nd7 {[%emt 0:0:8]} 18. Ne4 {[%emt 0:0:45]} Rf5 {[%emt 0:0:2]} 19. f4 {[%emt 0:1:2]} Nxe5 {[%emt 0:0:19]
} 20. dxe5 {[%emt 0:0:7]} Qb6 {[%emt 0:0:38]} 21. Qe2 {[%emt 0:1:39]
} a5 {[%emt 0:0:19]} 22. g4 {[%emt 0:0:45]} Rf7 {[%emt 0:0:2]
} 23. g5 {[%emt 0:0:40]} a4 {[%emt 0:0:11]} 24. Nf6 {[%emt 0:0:5]} Bxf6 {[%emt 0:0:17]
} 25. gxf6+ {[%emt 0:0:8]} Kg8 {[%emt 0:0:42]} 26. Bxg6 {[%emt 0:0:22]
} hxg6 {[%emt 0:0:5]} 27. Qh2 {[%emt 0:0:12]} Qxe3+ {[%emt 0:0:0]} 28. Kb1 {[%emt 0:0:2]} Qe4+ {[%emt 0:0:15]} 29. Ka1 {[%emt 0:0:1]} 1-0

[Event "FIDE World Rapid-ch Open 2018"]
[White "Al Thebaiti, Ahmed M"]
[Black "Hirneise, Tobias"]
[Site "St. Petersburg"]
[Round "12.94"]
[Annotator "ChessBase"]
[Result "1-0"]
[Date "2018.12.28"]
[WhiteElo "1976"]
[BlackElo "2464"]
[PlyCount "111"]
[TimeControl "900+10"]

1. d4 {[%emt 0:0:0]} d5 {[%emt 0:0:0]} 2. Bf4 {[%emt 0:0:0]} Nf6 {[%emt 0:0:5]
} 3. e3 {[%emt 0:0:0]} c5 {[%emt 0:0:2]} 4. c3 {[%emt 0:0:0]} Nc6 {[%emt 0:0:1]} 5. Nd2 {[%emt 0:0:8]} e6 {[%emt 0:2:4]} 6. Ngf3 {[%emt 0:0:17]
} Bd6 {[%emt 0:0:2]} 7. Bg3 {[%emt 0:0:5]} 0-0 {[%emt 0:0:0]} 8. Bd3 {[%emt 0:1:8]} b6 {[%emt 0:0:3]} 9. 0-0 {[%emt 0:0:13]} Bb7 {[%emt 0:0:2]
} 10. a4 {[%emt 0:0:11]} Qe7 {[%emt 0:0:15]} 11. Ne5 {[%emt 0:0:0]} Nd7 {[%emt 0:1:9]} 12. f4 {[%emt 0:0:19]} f5 {[%emt 0:0:34]} 13. Qe2 {[%emt 0:3:23]} c4 {[%emt 0:0:14]} 14. Bc2 {[%emt 0:0:5]} a6 {[%emt 0:0:0]} 15. Kh1 {[%emt 0:2:19]} b5 {[%emt 0:0:54]} 16. axb5 {[%emt 0:2:18]} axb5 {[%emt 0:0:1]} 17. b4 {[%emt 0:0:6]} Nb6 {[%emt 0:0:24]} 18. Ndf3 {[%emt 0:0:29]
} Na4 {[%emt 0:3:29]} 19. Bh4 {[%emt 0:0:21]} Qc7 {[%emt 0:0:0]} 20. Bxa4 {[%emt 0:1:5]} Rxa4 {[%emt 0:0:24]} 21. Rxa4 {[%emt 0:0:12]} bxa4 {[%emt 0:0:1]} 22. Ng5 {[%emt 0:0:4]} Nd8 {[%emt 0:0:44]} 23. Qh5 {[%emt 0:0:30]
} h6 {[%emt 0:0:56]} 24. Nh3 {[%emt 0:0:25]} Nc6 {[%emt 0:0:0]} 25. g4 {[%emt 0:0:28]} fxg4 {[%emt 0:0:20]} 26. Nxg4 {[%emt 0:1:21]} Kh8 {[%emt 0:1:7]} 27. Rg1 {[%emt 0:1:20]} Qf7 {[%emt 0:0:6]} 28. Qxf7 Rxf7 29. Ra1 {[%emt 0:0:34]} Na7 {[%emt 0:0:20]} 30. Rxa4 Nb5 31. Be1 {[%emt 0:0:23]
} Kh7 {[%emt 0:0:8]} 32. Ra5 {[%emt 0:0:2]} Bc6 {[%emt 0:0:0]} 33. Ra6 {[%emt 0:0:0]} Bd7 {[%emt 0:0:10]} 34. Nhf2 {[%emt 0:0:20]} g5 {[%emt 0:0:11]} 35. Ne5 {[%emt 0:0:15]} Bxe5 {[%emt 0:0:4]} 36. fxe5 {[%emt 0:0:46]
} Bc8 {[%emt 0:0:16]} 37. Ra8 {[%emt 0:0:8]} Bb7 {[%emt 0:0:0]} 38. Rb8 {[%emt 0:0:2]} h5 {[%emt 0:0:14]} 39. Kg2 {[%emt 0:0:1]} Na3 {[%emt 0:0:21]} 40. h4 {[%emt 0:0:21]} g4 {[%emt 0:0:4]} 41. Bd2 {[%emt 0:0:0]} Bc6 {[%emt 0:0:4]} 42. Rc8 {[%emt 0:0:18]} Bb5 {[%emt 0:0:21]} 43. e4 {[%emt 0:0:10]} Nb1 {[%emt 0:0:44]} 44. Be1 {[%emt 0:0:17]} Ba6 {[%emt 0:0:0]} 45. Rc6 {[%emt 0:0:10]} Bb7 {[%emt 0:0:2]} 46. Rxe6 {[%emt 0:0:34]} dxe4 {[%emt 0:0:1]} 47. Nd1 {[%emt 0:0:19]} e3+ {[%emt 0:0:7]} 48. Kg1 {[%emt 0:0:19]
} e2 {[%emt 0:0:39]} 49. Ne3 {[%emt 0:0:5]} Rf3 {[%emt 0:0:0]} 50. Re7+ {[%emt 0:0:6]} Kg6 {[%emt 0:0:1]} 51. Rxb7 {[%emt 0:0:4]} Rxe3 {[%emt 0:0:1]} 52. Kf2 {[%emt 0:0:0]} Re4 {[%emt 0:0:9]} 53. Rb6+ {[%emt 0:0:13]
} Kg7 {[%emt 0:0:3]} 54. Rb7+ {[%emt 0:0:2]} Kg6 {[%emt 0:0:0]} 55. Rb6+ {[%emt 0:0:2]} Kg7 {[%emt 0:0:1]} 56. Rb7+ {[%emt 0:0:3]} 1-0

[Event "FIDE World Rapid-ch Open 2018"]
[White "Vorotnikov, Vladislav V"]
[Black "Danielyan, Vahe"]
[Site "St. Petersburg"]
[Round "12.97"]
[Annotator "NA"]
[Result "1/2-1/2"]
[Date "2018.12.28"]
[WhiteElo "2417"]
[BlackElo "2220"]
[PlyCount "69"]
[TimeControl "900+10"]

1. e4 {[%emt 0:0:0]} c5 {[%emt 0:0:0]} 2. Nf3 {[%emt 0:0:0]} d6 {[%emt 0:0:0]} 3. c3 {[%emt 0:0:14]} Nf6 {[%emt 0:0:3]} 4. Bd3 {[%emt 0:0:3]} g6 {[%emt 0:0:5]} 5. h3 {[%emt 0:0:17]} Bg7 {[%emt 0:0:2]} 6. Bc2 {[%emt 0:0:0]} 0-0 {[%emt 0:0:3]} 7. 0-0 {[%emt 0:0:11]} e5 {[%emt 0:0:7]} 8. d4 {[%emt 0:1:11]} cxd4 {[%emt 0:0:10]} 9. cxd4 {[%emt 0:0:2]} Nc6 {[%emt 0:0:0]} 10. dxe5 {[%emt 0:1:27]} dxe5 {[%emt 0:0:2]} 11. Nc3 {[%emt 0:0:8]
} Be6 {[%emt 0:0:5]} 12. Be3 {[%emt 0:0:25]} h6 {[%emt 0:0:9]} 13. Bb3 {[%emt 0:0:30]
} Bxb3 {[%emt 0:2:5]} 14. axb3 {[%emt 0:0:39]} a6 {[%emt 0:0:0]} 15. Qxd8 {[%emt 0:0:53]} Rfxd8 {[%emt 0:0:4]} 16. Rfd1 {[%emt 0:0:2]} g5 {[%emt 0:0:50]} 17. Bb6 {[%emt 0:0:45]} Re8 {[%emt 0:0:8]} 18. Nd5 {[%emt 0:0:42]
} Nxd5 {[%emt 0:0:10]} 19. Rxd5 {[%emt 0:0:35]} Bf8 {[%emt 0:0:0]} 20. Nd2 {[%emt 0:2:22]} Ne7 {[%emt 0:4:55]} 21. Rd7 {[%emt 0:0:34]} Nc8 {[%emt 0:0:50]} 22. Rxb7 {[%emt 0:2:11]} Nd6 {[%emt 0:0:54]} 23. Rd7 {[%emt 0:0:27]
} Rec8 {[%emt 0:0:1]} 24. Bc7 {[%emt 0:1:40]} Ra7 {[%emt 0:0:0]} 25. Rxd6 {[%emt 0:0:8]} Raxc7 {[%emt 0:0:1]} 26. Rdxa6 {[%emt 0:0:12]
} Rc2 {[%emt 0:0:11]} 27. Nc4 {[%emt 0:0:23]} Bc5 {[%emt 0:0:23]} 28. Rf6 {[%emt 0:1:26]
} Bd4 {[%emt 0:0:0]} 29. Ra5 {[%emt 0:1:0]} Re2 {[%emt 0:0:0]} 30. g4 {[%emt 0:0:35]} Rb8 {[%emt 0:2:23]} 31. Nxe5 {[%emt 0:0:9]} Rxe4 {[%emt 0:0:17]} 32. Rf5 {[%emt 0:0:5]} Bxe5 {[%emt 0:0:36]} 33. Raxe5 {[%emt 0:0:5]} Rxe5 {[%emt 0:0:2]} 34. Rxe5 {[%emt 0:0:1]} Rxb3 {[%emt 0:0:0]} 35. Re3 {[%emt 0:0:4]} 1/2-1/2